Cogmind - Beta 13 @@@ ROGUE MODE // 2024.03.11 @ 21:02:13 Player: Baxter Result: Destroyed by S-10 Pest with Light Assault Rifle Performance ------------- Evolutions (0) 0 Regions Visited (2) 400 Robots Destroyed (15) 75 Value Destroyed (246) 246 Prototype IDs (0) 0 Alien Tech Used (0) 0 Bonus (0) 0 TOTAL SCORE: 721 Bonus ------- None Cogmind --------- Core Integrity 0/250 Matter 278/300 Energy 83/100 System Corruption 0% Temperature Cool (0) Movement Core (1400) Ox27 Location -10/Mines Parts ------- > --- POWER (1) -------- (None) > --- PROPULSION (2) --- Light Treads > --- UTILITY (2) ------ Huge Storage Unit > --- WEAPON (2) ------- Light Assault Rifle Light Assault Rifle > --- INVENTORY (25) --- Ion Engine Light Ion Engine Light Ion Engine Light Ion Engine Improved Ion Engine Light Treads Aluminum Leg Aluminum Leg Wheel Wheel Compact Wheel High-capacity Matter Pod (200) Structural Scanner Signal Interpreter Improved Terrain Scanner Improved Terrain Scanner Light Armor Plating Tractor Beam Medium Laser Grenade Launcher Peak State ------------ > --- POWER ------------ Light Ion Engine > --- PROPULSION ------- Light Treads Wheel > --- UTILITY ---------- Huge Storage Unit Sensor Array > --- WEAPON ----------- Medium Laser Light Assault Rifle > --- INVENTORY -------- Ion Engine Light Ion Engine Light Ion Engine Light Treads Aluminum Leg Aluminum Leg Wheel Wheel High-capacity Matter Pod Structural Scanner Improved Terrain Scanner Improved Terrain Scanner Tractor Beam Medium Laser Light Assault Rifle Grenade Launcher [Rating: 9] Favorites ----------- Power Light Ion Engine Engine Light Ion Engine Propulsion Wheel Treads Light Treads Leg Aluminum Leg Wheel Wheel Utility Huge Storage Unit Device Sensor Array Storage Huge Storage Unit Weapon Light Assault Rifle Energy Gun Medium Laser Ballistic Gun Light Assault Rifle Build | -11 -10 -10 ------- Run | Yrd Mat Min Slots Evolved . | . . . Power . | . . . Propulsion . | . . . Utility . | . . . Weapon . | . . . Parts Attached 25 | 6 8 11 Power 2 | 1 . 1 Engine 2 | 1 . 1 Core . | . . . Reactor . | . . . Propulsion 9 | 2 5 2 Treads 3 | 1 1 1 Leg 1 | . 1 . Wheel 5 | 1 3 1 Hover . | . . . Flight . | . . . Utility 5 | 1 3 1 Device 2 | . 1 1 Storage 3 | 1 2 . Processor . | . . . Hackware . | . . . Protection . | . . . Artifact . | . . . Weapon 9 | 2 . 7 Energy Gun 1 | 1 . . Energy Cannon . | . . . Ballistic Gun 8 | 1 . 7 Ballistic Cannon . | . . . Launcher . | . . . Special Weapon . | . . . Impact Weapon . | . . . Slashing Weapon . | . . . Piercing Weapon . | . . . Special Melee Weapon . | . . . Unidentified Prototypes . | . . . Parts Lost 9 | . . 9 Power 2 | . . 2 Propulsion 2 | . . 2 Utility 1 | . . 1 Weapon 4 | . . 4 Highest Loss Streak 4 | . . 4 To Critical Strikes . | . . . Average Slot Usage (%) 92 | . 98 90 Engine 10 | . 14 9 Treads 9 | . 7 10 Wheel 16 | . 18 15 Device 11 | . 9 11 Storage 15 | . 17 15 Energy Gun 10 | . 14 10 Ballistic Gun 15 | . 14 16 Naked Turns . | . . . Heaviest Build 90 | 11 90 90 Greatest Support 20 | 20 20 20 Greatest Overweight (x) 28 | 1 8 28 Average Overweight (x) 5 | . 3 7 Largest Inventory Capacity 25 | 8 25 25 Average Capacity 22 | 7 21 25 Most Carried 22 | 7 11 22 Average Carried 12 | 5 9 14 Final Capacity 25 | 8 25 25 Final Carried 20 | 7 11 20 Class Distribution -------------------- 92% | Mutant 7% | Scavenger-Mutant Dominant Class ---------------- Mutant | -10/Materials Mutant | -10/Mines Resources | -11 -10 -10 ----------- Run | Yrd Mat Min Matter Collected 662 | 266 73 323 Remotely 10 | . 10 . Salvage Created 485 | 51 110 324 Parts 32 | 1 5 26 Haulers Intercepted . | . . . Recyclers Shooed 1 | . . 1 Parts Field Recycled . | . . . Retrieved Matter . | . . . Parts Self-Destructed . | . . . Prevented . | . . . Kills | -11 -10 -10 ------- Run | Yrd Mat Min Combat Hostiles Destroyed 7 | . 2 5 Guns 7 | . 2 5 Classes Destroyed 7 | 1 2 4 Worker 3 | . . 3 Tunneler 2 | . . 2 Recycler 2 | 1 . 1 Watcher 1 | . 1 . Swarmer 3 | . . 3 Grunt 2 | . 2 . Sentry 2 | . . 2 Best Kill Streak 3 | 1 3 3 Combat Bots Only 3 | . 2 3 Max Kills in Single Turn 1 | 1 1 1 Gunslinging . | . . . Exploded . | . . . Melee . | . . . Uniques/NPCs Destroyed . | . . . Combat | -11 -10 -10 -------- Run | Yrd Mat Min Hostile Shots Fired 75 | . 11 64 Missed 11 | . 3 8 Damage Taken 980 | . 107 873 Core 254 | . 14 240 Absorbed by Shields . | . . . Core Remaining (%) 100 | 100 . . Volleys Fired 46 | 6 7 33 Largest 2 | 2 2 2 Hottest 70 | 70 70 70 Shots Fired 89 | 12 14 63 Gun 89 | 12 14 63 Cannon . | . . . Launcher . | . . . Special . | . . . Kinetic 48 | 6 7 35 Thermal 41 | 6 7 28 Explosive . | . . . Electromagnetic . | . . . Robot Hit Streak 10 | 5 9 10 Robot Miss Streak 3 | 2 1 3 Penetration Max . | . . . Secondary Targets 2 | . . 2 Max Gunslinging Chain 1 | . . 1 Shots Hit Robots 60 | 9 12 39 Core Hits 27 | 2 6 19 Critical Kills . | . . . Critical Parts Destroyed . | . . . Critical Strikes 3 | . 1 2 Burn 3 | . 1 2 Melee Attacks . | . . . Impact . | . . . Slashing . | . . . Piercing . | . . . Sneak Attacks . | . . . Combat Hostiles . | . . . Follow-up Attacks . | . . . Damage Inflicted 614 | 95 127 392 Guns 614 | 95 127 392 Cannons . | . . . Explosions . | . . . Melee . | . . . Ramming . | . . . Kinetic 246 | 43 41 162 Thermal 368 | 52 86 230 Explosive . | . . . Electromagnetic . | . . . Impact . | . . . Slashing . | . . . Piercing . | . . . Highest Corruption . | . . . Average Corruption . | . . . Corruption Purged . | . . . Corruption Blocked . | . . . Overload Shots . | . . . Overflow Damage . | . . . Projectiles . | . . . Explosions . | . . . Melee . | . . . Knockbacks . | . . . Impact . | . . . Kinetic . | . . . Secondary . | . . . Self-Inflicted Damage . | . . . Shots . | . . . Rammed . | . . . Targets Rammed . | . . . Kicked . | . . . Crushed . | . . . Highest Temperature 163 | 70 163 90 Average Temperature 45 | 33 79 38 Received Heat Transfer 135 | . 63 72 Siege Activations . | . . . Robots Corrupted . | . . . Combat Hostiles . | . . . Parts Fried . | . . . Impact Corruptions . | . . . Robots Melted . | . . . Combat Hostiles . | . . . Parts Melted 5 | . 2 3 Heat Transferred 1295 | 148 333 814 Parts Sabotaged . | . . . Parts Stolen . | . . . Parts Stripped . | . . . Power Chain Reactions . | . . . Alert | -11 -10 -10 ------- Run | Yrd Mat Min Peak Influence 103 | 5 86 103 Initial 33 | . 3 33 Average 30 | 1 24 35 Maximum Alert Level . | . . . Low Security (%) 100 | 100 100 100 Level 1 . | . . . Level 2 . | . . . Level 3 . | . . . Level 4 . | . . . Level 5 . | . . . High Security . | . . . Max Security . | . . . Squads Dispatched . | . . . Investigation . | . . . Extermination . | . . . Reinforcement . | . . . Assault . | . . . Garrison . | . . . Intercept . | . . . Searches Triggered . | . . . Construction Impeded . | . . . Haulers Reinforced . | . . . Active Scanning Responses . | . . . Cargo Convoy Interrupts . | . . . Stealth | -11 -10 -10 --------- Run | Yrd Mat Min Distress Signals . | . . . Communications Jammed . | . . . Distress Signals . | . . . Times Spotted 14 | . 5 9 Peak Tracking Total 4 | . 4 3 Tactical Retreats . | . . . Traps | -11 -10 -10 ------- Run | Yrd Mat Min Traps Triggered . | . . . Indirectly . | . . . Trap Hack Attempts . | . . . Triggered . | . . . Disarmed . | . . . Reprogrammed . | . . . Reused . | . . . Traps Extracted . | . . . Installed . | . . . Triggered . | . . . Machines | -11 -10 -10 ---------- Run | Yrd Mat Min Machines Disabled . | . . . Max in Single Turn . | . . . Machines Repaired . | . . . Machines Dismantled . | . . . Machines Sabotaged . | . . . Overloaded Fab Kills . | . . . Hacking | -11 -10 -10 --------- Run | Yrd Mat Min Machines Accessed 2 | . 1 1 Terminals 2 | . 1 1 Fabricators . | . . . Repair Stations . | . . . Recycling Units . | . . . Scanalyzers . | . . . Garrison Access . | . . . Total Hacks 5 | . 3 2 Successful 2 | . 2 . Failed 3 | . 1 2 Catastrophic . | . . . Database Lockouts . | . . . Manual 5 | . 3 2 Terminals 5 | . 3 2 Fabricators . | . . . Repair Stations . | . . . Recycling Units . | . . . Scanalyzers . | . . . Garrison Access . | . . . Terminal Hacks 1 | . 1 . Robot Analysis 1 | . 1 . Fabricator Hacks . | . . . Repair Station Hacks . | . . . Recycling Unit Hacks . | . . . Scanalyzer . | . . . Garrison Access Hacks . | . . . Unauthorized Hacks 1 | . 1 . Terminals 1 | . 1 . Botnet 1 | . 1 . Fabricators . | . . . Repair Stations . | . . . Recycling Units . | . . . Scanalyzers . | . . . Garrison Access . | . . . Data Cores Recovered . | . . . Used . | . . . Hacking Detections 2 | . 1 1 Full Trace Events 1 | . 1 . Feedback Events . | . . . Feedback Blocked . | . . . Robot Schematics Acquired . | . . . Robots Built . | . . . Authchips . | . . . Time . | . . . Total Robot Build Rating . | . . . Part Schematics Acquired . | . . . Parts Built . | . . . Authchips . | . . . Time . | . . . Total Part Build Rating . | . . . Parts Repaired . | . . . Time . | . . . Parts Recycled . | . . . Recycled Matter . | . . . Retrieved Matter . | . . . Retrieved Components . | . . . Parts Scanalyzed . | . . . Part Schematics Acquired . | . . . Parts Damaged . | . . . Bothacking | -11 -10 -10 ------------ Run | Yrd Mat Min Used RIF Installer . | . . . Robots Hacked . | . . . Non-combat . | . . . Combat . | . . . Robot Hacks Applied . | . . . Relay Couplers Released . | . . . Fabnet Peak Effective % . | . . . Robots Rewired . | . . . Allies Hacked . | . . . Hacks Repelled . | . . . Allies | -11 -10 -10 -------- Run | Yrd Mat Min Total Allies . | . . . Largest Group . | . . . Highest-Rated Group . | . . . Highest-Rated Ally . | . . . Total Orders . | . . . Ally Attacks . | . . . Total Damage . | . . . Kills . | . . . Allies Corrupted . | . . . Allies Melted . | . . . Intel | -11 -10 -10 ------- Run | Yrd Mat Min Robot Analysis Total 1 | . 1 . Derelict Logs Recovered 1 | . . 1 Drone Launches . | . . . Drone Recoveries . | . . . Exploration | -11 -10 -10 ------------- Run | Yrd Mat Min Turns Passed 1271 | 128 226 917 Spaces Moved 609 | 79 138 392 Core 5 | 1 . 4 Treads 39 | 36 . 3 Legs . | . . . Wheels 565 | 42 138 385 Hover . | . . . Flight . | . . . Fastest Speed 50 | 50 95 140 Average Speed 174 | 120 135 199 Slowest Speed 1450 | 160 200 1450 Overloaded Moves . | . . . Propulsion Burnouts . | . . . Robots Hopped . | . . . Cave-ins Triggered . | . . . Exploration Rate (%) 31 | 6 29 60 Regions Visited 2 Branch Regions 1 Pre-discovered Areas . | . . . Known Exits Taken . | . . . Unknown Exits Taken 2 | 1 1 . Scrap Searched 2 | . . 2 Spaces Dug . | . . . Terrain Destroyed . | . . . Melee . | . . . Projectile . | . . . AOE . | . . . Terrain Rammed . | . . . Walls Destroyed . | . . . Machines Disabled . | . . . Actions | -11 -10 -10 --------- Run | Yrd Mat Min Total 729 | 98 162 469 Wait 28 | . 5 23 Move 607 | 78 137 392 Hop . | . . . Pick Up 22 | 8 4 10 Fast Attach 7 | 5 1 1 Attach 6 | 1 . 5 Detach . | . . . Swap 12 | . 7 5 Drop 1 | . 1 . Fire 46 | 6 7 33 Melee . | . . . Ram . | . . . Kick . | . . . Crush . | . . . Escape Stasis . | . . . Rewire . | . . . Trap . | . . . Miscellaneous . | . . . Route ------- -11/Scrapyard -10/Materials -10/Mines (discovered 1 exit: [*Mat]) History --------- Turn | Location | Event 19 | -11/Scrapyard | Discovered new exit (range 16) 129 | -11/Scrapyard | Entered Materials 316 | -10/Materials | Build established: Mutant 335 | -10/Materials | Discovered new exit (range 15) 355 | -10/Materials | Entered Mines 361 | -10/Mines | Met a Derelict bent on vengeance 567 | -10/Mines | Discovered new exit (range 6) 677 | -10/Mines | Learned Materials stockpile data 1000 | -10/Mines | Joined a pair of Derelicts in attacking an 0b10 outpost 1052 | -10/Mines | Lost 3 parts (1p2w) 1167 | -10/Mines | Assembled infested the area 1214 | -10/Mines | Core integrity fell below 50% 1222 | -10/Mines | Core integrity fell below 20% 1250 | -10/Mines | Lost 4 parts (1n1u2w) 1267 | -10/Mines | Met 8R-AWN 1272 | -10/Mines | Destroyed by S-10 Pest with Light Assault Rifle Last Messages --------------- 01256_ K-01 Serf collects debris. 01258_ The unstable cave ceiling collapses. 01258_ U-05 Engineer builds a Wall. 01260_ U-05 Engineer lays Concrete. 01262_ K-01 Serf collects debris. 01262_ U-05 Engineer lays Concrete. 01264_ U-05 Engineer builds a Wall. 01264_ U-05 Engineer lays Concrete. 01266_ U-05 Engineer builds a Wall. 01267_ K-01 Serf collects debris. 8R-AWN: Hm, I'm not getting any readings that show these Assembled are different than what we have already... But you... you look interesting. Maybe they'll want to see you. Come along little bot, it's safer with us than out here, anyway. 01268_ K-01 Serf collects debris. 01269_ Destroyed Wheel. 01272_ K-01 Serf collects debris. Map ----- +----------------------------------------------------+ | ### ####??# ???# ## #???## =[ ##??????????????? | | ##?# #?????# #### # ##??###++#####????????????? | | ???# #?????# # ##?#!=%%! ##???????????? | | #### #?????# # ### [ ! #???????????? | | #?????#### #???????????? | | #####????????# #???????????? | | #????????????# ### ## ##???????????? | | #????????????# #?#| ## #?###????????????? | | #????????????# #?# ### #????????????????? | | #????????????# #?##|! ##?# #????????????????? | | #????????##### #??##% #??# #????????????????? | | #????????# #???# #?## ##???????????????? | | #????????# #####???# #### #???????????????? | | #??####### #???????# ##### #???????????????? | | #### ##??????# #?## ##???????????????? | | #??????# ### ##???????????????? | | ###### #??????# ##??????????????? | | ?????## ##??????# g ##?????????????? | | ??????# ##???????#### #### #?????????????? | | ####### ####???????????# #??## #?????????????? | | # #??????????????# #???# ##?????????????? | | # ## ####??????????##### #### ##??????????????? | | # ## ##???###????#### # ##???????????????? | | # ###?# #???# #k# * #????????????????? | | ### #### # * k ##???????????????? | | #?# ## @ #???????????????? | | ### #?# #??????????????? | | ##??# ##?## ## ## s#?????????????? | | ###????###???# # ##?# ??????????? | | #???????????## ## #??? s?????????? | | ??????????### # # ##??? ???????????? | | ?????????## #########??????? ????????????? | | ?????????# #?????????????????????????????? | | ?????????# #?????????????????????????????? | | ?????????## #?????????????????????????????? | | ??????????#### ##?????????????????????????????? | | ?????????????## ##??????????????????????????????? | | ??????????????# #???????????????????????????????? | | ??????????????# #???????????????????????????????? | | ??????????????# #???????????????????????????????? | | ??????????????# ???????????????????????????????? | | ??????????????# ??????????????????????????????? | | ??????????????##### ?????????????????????????????? | | ??????????????????? ?????????????????????????????? | | ????????????????????#????????????????????????????? | | ?????????????????????????????????????????????????? | | ?????????????????????????????????????????????????? | | ?????????????????????????????????????????????????? | | ?????????????????????????????????????????????????? | | ?????????????????????????????????????????????????? | +----------------------------------------------------+ Best States ------------- Heat Dissipation 25 Energy Generation 10 Energy Capacity 125 Matter Stores 300 Matter Capacity 500 Sight Range 16 Robot Scan Range 14 Terrain Scan Density 10 Evasion (%) 44 Recoil Reduction 1 Item Schematics ----------------- None Robot Schematics ------------------ None Fabricated ------------ Nothing Alien Tech Used ----------------- None Achievements -------------- None Challenges ------------ None Game ------ Seed SensorSingularityNukerbomber Manual? 0 Play Time 00:07:17 Cumulative 35.6 hours Start 2024.03.11 @ 20:55:32 End 2024.03.11 @ 21:02:13 Sessions 1 Manual Loads 0 Difficulty Rogue Special Mode None Game No. 38 Rogue 38 Adventurer 0 Explorer 0 Win Type - Total 0 Types 0/0/0/0/0/0/0/0/0 Lore% 22 Gallery% 27 Achievement% 25 Wizard Run 0 Options --------- Layout 1 ASCII 0 Keyboard 0 Movement Numpad Keybinds 0 Fullscreen 2 Font 24/X11 Map View 50x35 Zoom Use 0% Tactical HUD 1 Map Filters NONE Filters NONE Steam 0 RUN: 29cac111-c09e-485e-9979-f86612a5b63a